[Event "*** Titled Tuesday 3|2 Blitz"]
[Site "Chess.com"]
[Date "2016.03.01"]
[Round "8"]
[White "SabinoBrunello"]
[Black "DagurR"]
[Result "1-0"]
[WhiteElo "2490"]
[BlackElo "2287"]
[TimeControl "180+2"]
[EndTime "13:18:48 PST"]
[Termination "SabinoBrunello won by resignation"]

1. d4 {[%clk 0:03:01.9]} 1... e6 {[%clk 0:02:59.2]} 2. Nf3 {[%clk 0:03:01.6]}
2... f5 {[%clk 0:02:59.9]} 3. c4 {[%clk 0:03:00.3]} 3... Nf6 {[%clk 0:02:57.2]}
4. Nc3 {[%clk 0:03:00.9]} 4... d5 {[%clk 0:02:57.6]} 5. Bg5 {[%clk 0:03:00.6]}
5... c6 {[%clk 0:02:58.8]} 6. e3 {[%clk 0:03:01.4]} 6... Be7 {[%clk 0:02:55.5]}
7. Bxf6 {[%clk 0:03:01.6]} 7... Bxf6 {[%clk 0:02:56.2]} 8. Be2 {[%clk
0:03:01.4]} 8... O-O {[%clk 0:02:57.3]} 9. O-O {[%clk 0:03:02.2]} 9... b6 {[%clk
0:02:58.8]} 10. Qc2 {[%clk 0:03:02.8]} 10... Bb7 {[%clk 0:02:59.9]} 11. b4
{[%clk 0:03:02.7]} 11... Qe7 {[%clk 0:02:52.9]} 12. Rab1 {[%clk 0:02:58.3]}
12... Nd7 {[%clk 0:02:38.1]} 13. Rfc1 {[%clk 0:02:52.7]} 13... Rab8 {[%clk
0:02:28.6]} 14. cxd5 {[%clk 0:02:52.3]} 14... exd5 {[%clk 0:02:16]} 15. Qb3
{[%clk 0:02:38]} 15... a6 {[%clk 0:01:50]} 16. a4 {[%clk 0:02:38]} 16... b5
{[%clk 0:01:51.3]} 17. a5 {[%clk 0:02:39.2]} 17... g5 {[%clk 0:01:43.3]} 18. Re1
{[%clk 0:02:38]} 18... Rbe8 {[%clk 0:01:42.5]} 19. Qc2 {[%clk 0:02:31.1]} 19...
Bg7 {[%clk 0:01:33.2]} 20. Bd3 {[%clk 0:02:29.3]} 20... Qf6 {[%clk 0:01:30.7]}
21. Ne2 {[%clk 0:02:25.3]} 21... Re4 {[%clk 0:00:55.6]} 22. Nd2 {[%clk
0:02:18.6]} 22... Rh4 {[%clk 0:00:53.2]} 23. Nf3 {[%clk 0:02:12.6]} 23... Rh6
{[%clk 0:00:50.4]} 24. Ng3 {[%clk 0:02:10.9]} 24... f4 {[%clk 0:00:51.5]} 25.
exf4 {[%clk 0:02:04.2]} 25... g4 {[%clk 0:00:32.6]} 26. Ng5 {[%clk 0:01:45.7]}
26... Qxf4 {[%clk 0:00:15.2]} 27. Ne6 {[%clk 0:01:46.4]} 27... Qf6 {[%clk
0:00:11.6]} 28. Nxf8 {[%clk 0:01:44.3]} 28... Nxf8 {[%clk 0:00:13.5]} 29. Nf5
{[%clk 0:01:44.6]} 29... Rh5 {[%clk 0:00:14.5]} 30. Re5 {[%clk 0:01:33.3]} 30...
Ng6 {[%clk 0:00:15.5]} 31. Ne7+ {[%clk 0:01:32.5]} 31... Nxe7 {[%clk 0:00:15.8]}
32. Rxh5 {[%clk 0:01:33.5]} 32... h6 {[%clk 0:00:15.9]} 33. Re5 {[%clk
0:01:33.2]} 33... Qf7 {[%clk 0:00:13.4]} 34. Rbe1 {[%clk 0:01:32.6]} 34... Nc8
{[%clk 0:00:14.7]} 35. Re8+ {[%clk 0:01:32.6]} 35... Bf8 {[%clk 0:00:16.6]} 36.
Bg6 {[%clk 0:01:32.7]} 36... Qf6 {[%clk 0:00:17.8]} 37. Qf5 {[%clk 0:01:31.3]}
37... Qxf5 {[%clk 0:00:18.7]} 38. Bxf5 {[%clk 0:01:33.2]} 38... Nd6 {[%clk
0:00:20.4]} 39. Be6+ {[%clk 0:01:34.6]} 39... Kg7 {[%clk 0:00:21.5]} 40. Rb8
{[%clk 0:01:36.3]} 40... Kf6 {[%clk 0:00:20.4]} 41. Bxg4 {[%clk 0:01:36.9]}
41... Be7 {[%clk 0:00:21]} 42. Re6+ {[%clk 0:01:37.1]} 42... Kf7 {[%clk
0:00:22]} 43. Rxd6 {[%clk 0:01:38]} 43... Bxd6 {[%clk 0:00:23.6]} 44. Rxb7+
{[%clk 0:01:39.9]} 1-0

[Event "*** Titled Tuesday 3|2 Blitz"]
[Site "Chess.com"]
[Date "2016.03.01"]
[Round "8"]
[White "bugsbunny444"]
[Black "Jahonas"]
[Result "0-1"]
[WhiteElo "2410"]
[BlackElo "2192"]
[TimeControl "180+2"]
[EndTime "13:19:11 PST"]
[Termination "Jahonas won by resignation"]

1. Nf3 {[%clk 0:03:01.9]} 1... d5 {[%clk 0:03:00.4]} 2. c4 {[%clk 0:03:02.7]}
2... Nf6 {[%clk 0:03:01.2]} 3. cxd5 {[%clk 0:03:03.4]} 3... Nxd5 {[%clk
0:03:01.6]} 4. d4 {[%clk 0:03:04.7]} 4... e6 {[%clk 0:03:02.1]} 5. e4 {[%clk
0:03:05.6]} 5... Nb4 {[%clk 0:03:02.6]} 6. Nc3 {[%clk 0:03:01.3]} 6... c5 {[%clk
0:03:02.7]} 7. a3 {[%clk 0:02:29.9]} 7... cxd4 {[%clk 0:02:59.4]} 8. axb4 {[%clk
0:02:27.7]} 8... dxc3 {[%clk 0:02:59]} 9. Qxd8+ {[%clk 0:02:29.4]} 9... Kxd8
{[%clk 0:02:59.8]} 10. bxc3 {[%clk 0:02:31.1]} 10... Bd6 {[%clk 0:02:48.1]} 11.
Be3 {[%clk 0:01:59.6]} 11... a6 {[%clk 0:02:03.6]} 12. Bb6+ {[%clk 0:01:59.7]}
12... Bc7 {[%clk 0:02:02.2]} 13. Rd1+ {[%clk 0:01:16.8]} 13... Nd7 {[%clk
0:01:51.4]} 14. Bxc7+ {[%clk 0:00:56.7]} 14... Kxc7 {[%clk 0:01:51]} 15. Ng5
{[%clk 0:00:58.4]} 15... Ne5 {[%clk 0:01:46.8]} 16. f4 {[%clk 0:00:51.7]} 16...
h6 {[%clk 0:01:37.5]} 17. Nxe6+ {[%clk 0:00:40.3]} 17... Bxe6 {[%clk 0:01:38.1]}
18. fxe5 {[%clk 0:00:41.8]} 18... a5 {[%clk 0:01:38.6]} 19. Bb5 {[%clk
0:00:34.2]} 19... axb4 {[%clk 0:01:35.6]} 20. cxb4 {[%clk 0:00:36.1]} 20... Kb6
{[%clk 0:01:35.6]} 21. Bd7 {[%clk 0:00:31.3]} 21... Rhd8 {[%clk 0:01:34.1]} 22.
Rd6+ {[%clk 0:00:14.7]} 22... Kc7 {[%clk 0:01:29.4]} 23. Bxe6 {[%clk 0:00:03.9]}
23... Ra1+ {[%clk 0:01:28.4]} 24. Kf2 {[%clk 0:00:03.6]} 24... Rxh1 {[%clk
0:01:27.7]} 25. Rxd8 {[%clk 0:00:04.2]} 25... Kxd8 {[%clk 0:01:27.9]} 26. Bxf7
{[%clk 0:00:05.9]} 26... Ke7 {[%clk 0:01:27.8]} 27. Bd5 {[%clk 0:00:06.4]} 27...
b6 {[%clk 0:01:26.2]} 28. b5 {[%clk 0:00:05.4]} 28... Rxh2 {[%clk 0:01:22.3]}
29. Kg1 {[%clk 0:00:03.3]} 29... Rh5 {[%clk 0:01:21.9]} 30. e6 {[%clk
0:00:03.9]} 30... Re5 {[%clk 0:01:20.5]} 31. Kf2 {[%clk 0:00:04.7]} 31... h5
{[%clk 0:01:15.2]} 32. Ke3 {[%clk 0:00:05.9]} 32... Rg5 {[%clk 0:01:13.3]} 33.
Kf3 {[%clk 0:00:07.2]} 33... h4 {[%clk 0:01:13.9]} 34. Kf2 {[%clk 0:00:06.2]}
34... Rg3 {[%clk 0:01:15]} 35. Kf1 {[%clk 0:00:04.6]} 35... g5 {[%clk
0:01:15.6]} 36. Kf2 {[%clk 0:00:05.1]} 36... Rc3 {[%clk 0:01:16.2]} 37. Kg1
{[%clk 0:00:04.1]} 37... g4 {[%clk 0:01:17.1]} 38. Bb7 {[%clk 0:00:02.8]} 38...
Kxe6 {[%clk 0:01:16]} 39. Bd5+ {[%clk 0:00:02.1]} 39... Ke5 {[%clk 0:01:16.8]}
40. Kh2 {[%clk 0:00:03.3]} 40... Rc2 {[%clk 0:01:17.1]} 41. Kh1 {[%clk
0:00:04.1]} 41... g3 {[%clk 0:01:17.4]} 0-1

[Event "*** Titled Tuesday 3|2 Blitz"]
[Site "Chess.com"]
[Date "2016.03.01"]
[Round "8"]
[White "chessdude"]
[Black "Winehouse83"]
[Result "1/2-1/2"]
[WhiteElo "2364"]
[BlackElo "2362"]
[TimeControl "180+2"]
[EndTime "13:20:11 PST"]
[Termination "Game drawn by repetition"]

1. Nf3 {[%clk 0:02:17.3]} 1... d5 {[%clk 0:02:58.1]} 2. g3 {[%clk 0:02:18.4]}
2... Nf6 {[%clk 0:02:58.1]} 3. Bg2 {[%clk 0:02:19.9]} 3... Bg4 {[%clk 0:02:59]}
4. O-O {[%clk 0:02:19.9]} 4... Nbd7 {[%clk 0:02:59.8]} 5. d3 {[%clk 0:02:20.6]}
5... e5 {[%clk 0:02:58.7]} 6. c4 {[%clk 0:02:20.5]} 6... dxc4 {[%clk 0:02:57]}
7. dxc4 {[%clk 0:02:21.1]} 7... c6 {[%clk 0:02:56.9]} 8. Nc3 {[%clk 0:02:22.6]}
8... Be7 {[%clk 0:02:54.9]} 9. Qc2 {[%clk 0:02:24]} 9... O-O {[%clk 0:02:54.3]}
10. h3 {[%clk 0:02:25.5]} 10... Bh5 {[%clk 0:02:54.3]} 11. Nh4 {[%clk
0:02:27.1]} 11... Bg6 {[%clk 0:02:51.6]} 12. Nxg6 {[%clk 0:02:27.6]} 12... hxg6
{[%clk 0:02:53.5]} 13. Be3 {[%clk 0:02:24.9]} 13... Bc5 {[%clk 0:02:51.6]} 14.
Bxc5 {[%clk 0:02:25.1]} 14... Nxc5 {[%clk 0:02:53.5]} 15. b4 {[%clk 0:02:24.6]}
15... Ne6 {[%clk 0:02:51]} 16. e3 {[%clk 0:02:25.8]} 16... Rc8 {[%clk
0:02:37.8]} 17. Rfd1 {[%clk 0:02:26.5]} 17... Qe7 {[%clk 0:02:38.2]} 18. Rd2
{[%clk 0:02:22]} 18... Qxb4 {[%clk 0:02:36.1]} 19. Qb3 {[%clk 0:02:14.1]} 19...
Qe7 {[%clk 0:02:33.6]} 20. Rad1 {[%clk 0:02:10.7]} 20... Nc5 {[%clk 0:02:32]}
21. Qa3 {[%clk 0:02:11.3]} 21... b6 {[%clk 0:02:23.5]} 22. Na4 {[%clk
0:02:09.2]} 22... e4 {[%clk 0:02:04.4]} 23. Nxc5 {[%clk 0:02:09]} 23... bxc5
{[%clk 0:02:00.6]} 24. Qa6 {[%clk 0:01:53.5]} 24... Rc7 {[%clk 0:01:29.6]} 25.
Rd6 {[%clk 0:01:42.1]} 25... Rfc8 {[%clk 0:01:28.3]} 26. R6d2 {[%clk 0:01:38.4]}
26... g5 {[%clk 0:01:28.5]} 27. Bf1 {[%clk 0:01:36.2]} 27... g6 {[%clk
0:01:28.5]} 28. Be2 {[%clk 0:01:37.3]} 28... Kg7 {[%clk 0:01:29]} 29. Bg4 {[%clk
0:01:38.1]} 29... Nxg4 {[%clk 0:01:29.3]} 30. hxg4 {[%clk 0:01:39.4]} 30... Qe6
{[%clk 0:01:30]} 31. Rd6 {[%clk 0:01:26.5]} 31... Qxg4 {[%clk 0:01:29.7]} 32.
Qa5 {[%clk 0:01:24.2]} 32... Qf5 {[%clk 0:01:04]} 33. Qc3+ {[%clk 0:01:23.9]}
33... f6 {[%clk 0:00:49.3]} 34. Qd2 {[%clk 0:01:10.8]} 34... Rf7 {[%clk
0:00:49.1]} 35. Rd7 {[%clk 0:01:10.6]} 35... Rf8 {[%clk 0:00:44.2]} 36. Qd6
{[%clk 0:01:08.3]} 36... Qf3 {[%clk 0:00:38.4]} 37. Qe6 {[%clk 0:01:04.8]} 37...
Qf5 {[%clk 0:00:30]} 38. Qxc6 {[%clk 0:01:02.9]} 38... Rxd7 {[%clk 0:00:25.7]}
39. Qxd7+ {[%clk 0:00:58.9]} 39... Qxd7 {[%clk 0:00:25.7]} 40. Rxd7+ {[%clk
0:00:59.4]} 40... Rf7 {[%clk 0:00:27.3]} 41. Rd6 {[%clk 0:00:58.8]} 41... Rc7
{[%clk 0:00:22.2]} 42. g4 {[%clk 0:00:56.8]} 42... Kf7 {[%clk 0:00:22.6]} 43.
Ra6 {[%clk 0:00:57]} 43... Ke7 {[%clk 0:00:23.6]} 44. Kg2 {[%clk 0:00:58.1]}
44... Rd7 {[%clk 0:00:20.7]} 45. Rc6 {[%clk 0:00:56.5]} 45... Rd2 {[%clk
0:00:20]} 46. Rc7+ {[%clk 0:00:55.8]} 46... Kd6 {[%clk 0:00:18.2]} 47. Rxa7
{[%clk 0:00:56.5]} 47... Rc2 {[%clk 0:00:19.4]} 48. Ra6+ {[%clk 0:00:57.5]}
48... Ke7 {[%clk 0:00:20.2]} 49. Ra7+ {[%clk 0:00:56]} 49... Kd6 {[%clk
0:00:20.3]} 50. Ra6+ {[%clk 0:00:57.3]} 50... Ke7 {[%clk 0:00:20.9]} 51. Ra7+
{[%clk 0:00:58]} 51... Kd6 {[%clk 0:00:22]} 52. Ra6+ {[%clk 0:00:55.3]} 52...
Ke7 {[%clk 0:00:23.1]} 1/2-1/2

[Event "*** Titled Tuesday 3|2 Blitz"]
[Site "Chess.com"]
[Date "2016.03.01"]
[Round "8"]
[White "arnacman"]
[Black "Tesla17"]
[Result "1-0"]
[WhiteElo "2340"]
[BlackElo "2288"]
[TimeControl "180+2"]
[EndTime "13:20:23 PST"]
[Termination "arnacman won by resignation"]

1. e4 {[%clk 0:03:01.9]} 1... c5 {[%clk 0:03:01.2]} 2. Nf3 {[%clk 0:03:02.2]}
2... Nc6 {[%clk 0:03:02.6]} 3. d4 {[%clk 0:03:03.1]} 3... cxd4 {[%clk
0:03:04.5]} 4. Nxd4 {[%clk 0:03:04.9]} 4... g6 {[%clk 0:03:06.1]} 5. Nc3 {[%clk
0:03:01.9]} 5... Bg7 {[%clk 0:03:07.5]} 6. Be3 {[%clk 0:03:01.7]} 6... Nf6
{[%clk 0:03:08.9]} 7. Bc4 {[%clk 0:03:01.3]} 7... Qa5 {[%clk 0:03:10.3]} 8. O-O
{[%clk 0:02:57.1]} 8... O-O {[%clk 0:03:11.6]} 9. Bb3 {[%clk 0:02:57]} 9... d6
{[%clk 0:03:12.9]} 10. f3 {[%clk 0:02:53.6]} 10... Bd7 {[%clk 0:03:13.4]} 11.
Qd2 {[%clk 0:02:49.5]} 11... Rfc8 {[%clk 0:03:14.8]} 12. Rad1 {[%clk 0:02:41.3]}
12... Ne5 {[%clk 0:03:15.7]} 13. Nd5 {[%clk 0:02:35]} 13... Qxd2 {[%clk
0:03:14.4]} 14. Rxd2 {[%clk 0:02:34.1]} 14... Nxd5 {[%clk 0:03:14.9]} 15. Bxd5
{[%clk 0:02:32.3]} 15... Rab8 {[%clk 0:03:09.1]} 16. Rfd1 {[%clk 0:02:08.5]}
16... Nc4 {[%clk 0:03:01.1]} 17. Bxc4 {[%clk 0:02:08.7]} 17... Rxc4 {[%clk
0:03:03]} 18. Kf2 {[%clk 0:02:05.7]} 18... Rbc8 {[%clk 0:02:54.2]} 19. c3 {[%clk
0:02:04.7]} 19... Ra4 {[%clk 0:02:43.3]} 20. a3 {[%clk 0:02:04]} 20... Ra5
{[%clk 0:02:44.4]} 21. Rd3 {[%clk 0:01:48.1]} 21... Kf8 {[%clk 0:02:38.3]} 22.
Ke1 {[%clk 0:01:45.1]} 22... Ke8 {[%clk 0:02:37.6]} 23. h3 {[%clk 0:01:43.9]}
23... Ra4 {[%clk 0:02:21.7]} 24. Ne2 {[%clk 0:01:28.8]} 24... Bb5 {[%clk
0:02:13.7]} 25. R3d2 {[%clk 0:01:28.7]} 25... Bc4 {[%clk 0:02:07.3]} 26. Nd4
{[%clk 0:01:21.7]} 26... Ba6 {[%clk 0:02:02.9]} 27. Nc2 {[%clk 0:01:19.1]} 27...
b6 {[%clk 0:01:55.4]} 28. Nb4 {[%clk 0:01:17.3]} 28... Bb7 {[%clk 0:01:54.6]}
29. Bd4 {[%clk 0:01:04.5]} 29... Bh6 {[%clk 0:01:54.1]} 30. Rd3 {[%clk 0:01:00]}
30... Ra5 {[%clk 0:01:52.7]} 31. Be3 {[%clk 0:00:52.4]} 31... Bg7 {[%clk
0:01:49.8]} 32. Nd5 {[%clk 0:00:46.8]} 32... f5 {[%clk 0:01:44.5]} 33. exf5
{[%clk 0:00:46.2]} 33... gxf5 {[%clk 0:01:45]} 34. Nf4 {[%clk 0:00:46.9]} 34...
Kf7 {[%clk 0:01:37.8]} 35. Kf2 {[%clk 0:00:47.5]} 35... Rb5 {[%clk 0:01:36.8]}
36. R3d2 {[%clk 0:00:44.8]} 36... Be5 {[%clk 0:01:28]} 37. Nh5 {[%clk
0:00:44.3]} 37... Rg8 {[%clk 0:01:24.5]} 38. g4 {[%clk 0:00:45]} 38... Ra5
{[%clk 0:01:07.5]} 39. Re1 {[%clk 0:00:37.7]} 39... Ra4 {[%clk 0:01:00]} 40. Bd4
{[%clk 0:00:34.6]} 40... Bxd4+ {[%clk 0:00:57.5]} 41. cxd4 {[%clk 0:00:35]}
41... Rc4 {[%clk 0:00:44.2]} 42. Rde2 {[%clk 0:00:34.5]} 42... Re8 {[%clk
0:00:42.1]} 43. gxf5 {[%clk 0:00:34.6]} 43... Rxd4 {[%clk 0:00:40.3]} 44. f6
{[%clk 0:00:35.3]} 44... e5 {[%clk 0:00:37.8]} 45. Rg1 {[%clk 0:00:36.2]} 45...
Ke6 {[%clk 0:00:21]} 46. Ng7+ {[%clk 0:00:36.7]} 46... Kf7 {[%clk 0:00:21.6]}
47. Nxe8 {[%clk 0:00:38.6]} 47... Kxe8 {[%clk 0:00:23.5]} 48. Rg7 {[%clk
0:00:39.2]} 48... Ba6 {[%clk 0:00:24.2]} 49. Rc2 {[%clk 0:00:39.9]} 49... Kf8
{[%clk 0:00:25]} 50. Rcc7 {[%clk 0:00:40.6]} 1-0

[Event "*** Titled Tuesday 3|2 Blitz"]
[Site "Chess.com"]
[Date "2016.03.01"]
[Round "8"]
[White "Dlugy"]
[Black "Spas_Kozhuharov"]
[Result "1-0"]
[WhiteElo "2598"]
[BlackElo "2442"]
[TimeControl "180+2"]
[EndTime "13:20:56 PST"]
[Termination "Dlugy won by resignation"]

1. d4 {[%clk 0:03:01.9]} 1... Nf6 {[%clk 0:02:56.8]} 2. Bf4 {[%clk 0:03:03.5]}
2... d5 {[%clk 0:02:56.5]} 3. e3 {[%clk 0:03:04.6]} 3... c5 {[%clk 0:02:57.6]}
4. dxc5 {[%clk 0:03:05.4]} 4... e6 {[%clk 0:02:57.7]} 5. b4 {[%clk 0:03:05.8]}
5... a5 {[%clk 0:02:58.2]} 6. c3 {[%clk 0:03:07]} 6... b6 {[%clk 0:02:55.1]} 7.
Bxb8 {[%clk 0:03:07.1]} 7... Rxb8 {[%clk 0:02:54.1]} 8. Qa4+ {[%clk 0:03:08.1]}
8... Ke7 {[%clk 0:02:49.8]} 9. c6 {[%clk 0:03:08.6]} 9... Ne4 {[%clk 0:02:46]}
10. b5 {[%clk 0:03:08.9]} 10... f5 {[%clk 0:02:40.9]} 11. Nf3 {[%clk 0:03:09.7]}
11... Kf6 {[%clk 0:02:36.7]} 12. Qd4+ {[%clk 0:03:08.4]} 12... Kf7 {[%clk
0:02:35.5]} 13. Be2 {[%clk 0:03:01.8]} 13... Bc5 {[%clk 0:02:34.8]} 14. Qd1
{[%clk 0:02:57.9]} 14... Qf6 {[%clk 0:02:34.4]} 15. Nd4 {[%clk 0:02:41.9]} 15...
f4 {[%clk 0:02:35.1]} 16. O-O {[%clk 0:02:40]} 16... Rf8 {[%clk 0:02:33.2]} 17.
Bf3 {[%clk 0:02:39.5]} 17... e5 {[%clk 0:02:26.6]} 18. Nb3 {[%clk 0:02:29]}
18... Be6 {[%clk 0:02:18.3]} 19. Bxe4 {[%clk 0:02:26.5]} 19... dxe4 {[%clk
0:02:18.3]} 20. Nxc5 {[%clk 0:02:28]} 20... bxc5 {[%clk 0:02:19.4]} 21. Nd2
{[%clk 0:02:29.5]} 21... Rbd8 {[%clk 0:02:05.6]} 22. Qh5+ {[%clk 0:02:26.4]}
22... Ke7 {[%clk 0:01:46.5]} 23. Nxe4 {[%clk 0:02:27.1]} 23... Qf5 {[%clk
0:01:44.4]} 24. Qxf5 {[%clk 0:02:22.1]} 24... Bxf5 {[%clk 0:01:43]} 25. Nxc5
{[%clk 0:01:56.1]} 25... Rd5 {[%clk 0:01:43]} 26. Nb3 {[%clk 0:01:37.2]} 26...
Rxb5 {[%clk 0:01:42.6]} 27. c4 {[%clk 0:01:38.2]} 27... Rb4 {[%clk 0:01:35.8]}
28. Nxa5 {[%clk 0:01:39.2]} 28... Ra8 {[%clk 0:01:34.6]} 29. Nb7 {[%clk
0:01:36.3]} 29... Rxc4 {[%clk 0:01:32.2]} 30. exf4 {[%clk 0:01:35.1]} 30... exf4
{[%clk 0:01:29.4]} 31. Rfe1+ {[%clk 0:01:36.1]} 31... Kf6 {[%clk 0:01:28.9]} 32.
Rac1 {[%clk 0:01:33.3]} 32... Rxc1 {[%clk 0:01:10.3]} 33. Rxc1 {[%clk
0:01:34.4]} 33... Rxa2 {[%clk 0:01:11]} 34. Nd6 {[%clk 0:01:35.6]} 34... Ra8
{[%clk 0:01:03.5]} 35. c7 {[%clk 0:01:24.1]} 35... Bc8 {[%clk 0:01:03.3]} 36.
Re1 {[%clk 0:01:19.4]} 36... Bd7 {[%clk 0:01:00.6]} 37. g3 {[%clk 0:01:18.3]}
37... f3 {[%clk 0:00:59.5]} 38. h4 {[%clk 0:01:11]} 38... h5 {[%clk 0:00:50.6]}
39. Re3 {[%clk 0:00:56.6]} 39... Bg4 {[%clk 0:00:50.2]} 40. Re1 {[%clk
0:00:36.6]} 40... g6 {[%clk 0:00:40.6]} 41. Rc1 {[%clk 0:00:26.9]} 41... Bc8
{[%clk 0:00:40.7]} 42. Nxc8 {[%clk 0:00:27.2]} 42... Rxc8 {[%clk 0:00:40.8]} 43.
Kf1 {[%clk 0:00:26.5]} 43... Ke5 {[%clk 0:00:33.1]} 44. Ke1 {[%clk 0:00:27.6]}
44... Kd6 {[%clk 0:00:28.8]} 45. Kd2 {[%clk 0:00:28.7]} 45... Rxc7 {[%clk
0:00:30.2]} 46. Rxc7 {[%clk 0:00:29.5]} 46... Kxc7 {[%clk 0:00:32.1]} 47. Ke3
{[%clk 0:00:31.2]} 47... Kd6 {[%clk 0:00:33.8]} 48. Kxf3 {[%clk 0:00:29.6]}
48... Kd5 {[%clk 0:00:34.6]} 49. Kf4 {[%clk 0:00:30.6]} 49... Ke6 {[%clk
0:00:35.8]} 50. Kg5 {[%clk 0:00:31.8]} 50... Kf7 {[%clk 0:00:36.9]} 51. Kh6
{[%clk 0:00:24.5]} 51... Kf6 {[%clk 0:00:37]} 52. Kh7 {[%clk 0:00:21.1]} 52...
Kf7 {[%clk 0:00:36.6]} 53. Kh8 {[%clk 0:00:20.6]} 53... Kf8 {[%clk 0:00:36.7]}
54. Kh7 {[%clk 0:00:20.8]} 54... Kf7 {[%clk 0:00:37.8]} 55. Kh6 {[%clk
0:00:21.6]} 55... Kf6 {[%clk 0:00:38.8]} 56. f3 {[%clk 0:00:22.4]} 56... Kf7
{[%clk 0:00:39.6]} 57. Kg5 {[%clk 0:00:21.5]} 57... Kg7 {[%clk 0:00:40]} 58. f4
{[%clk 0:00:23.1]} 58... Kf7 {[%clk 0:00:40.1]} 59. f5 {[%clk 0:00:25]} 59...
gxf5 {[%clk 0:00:41.3]} 60. Kxf5 {[%clk 0:00:26.9]} 1-0